bitfinex/quotes_SOLUSD_20250520
["timestamp","ask_amount","ask_price","bid_price","bid_amount"]
[1747724528152,12.41756384,168.22,168.17,17.82]
[1747724529244,12.41756384,168.21,168.16,26.0]
[1747724530062,20.80114108,168.26,168.16,26.0]
[1747724530257,12.41756384,168.22,168.16,26.0]
[1747724530454,12.41756384,168.2,168.16,26.0]
[1747724530659,12.41756384,168.19,168.17,26.0]
[1747724531569,5.94601022,168.18,168.14,1.545]
[1747724531744,5.94601022,168.18,168.16,26.0]
[1747724532971,5.94565669,168.19,168.16,26.0]
[1747724533868,12.41756384,168.22,168.16,26.0]
[1747724534062,12.41756384,168.23,168.16,26.0]
[1747724534271,20.80305805,168.25,168.16,31.94656397]
[1747724534446,12.41756384,168.24,168.17,26.0]
[1747724535389,5.944243,168.23,168.17,31.94634725]
[1747724535584,5.944243,168.23,168.18,26.0]
[1747724536763,5.944243,168.23,168.19,26.0]
[1747724538971,5.944243,168.23,168.18,26.0]
[1747724539680,5.94318316,168.26,168.22,26.0]
[1747724540758,5.94282997,168.27,168.22,26.0]
[1747724540957,5.94282997,168.27,168.2,27.6558]
[1747724541350,5.94282997,168.27,168.2,33.60098505]
[1747724541974,18.36039381,168.27,168.2,33.60098505]
[1747724542273,12.41756384,168.25,168.2,1.6558]
[1747724542569,12.41756384,168.22,168.16,10.06384686]
[1747724542747,12.41756384,168.21,168.16,10.06384686]
[1747724542949,5.94530321,168.2,168.17,26.0]
[1747724543876,18.36286705,168.2,168.17,26.0]
[1747724544061,5.94530321,168.2,168.17,26.0]
[1747724544258,5.94530321,168.2,168.18,26.0]
[1747724547773,18.36286705,168.2,168.16,27.5409]
[1747724548077,18.36286705,168.2,168.16,1.5409]
[1747724548577,5.94530321,168.2,168.16,1.5409]
[1747724555881,18.36286705,168.2,168.16,1.5409]
[1747724556058,18.36286705,168.2,168.15,43.82]
[1747724556762,18.36286705,168.2,168.15,26.0]
[1747724556971,12.41756384,168.19,168.15,26.0]
[1747724557161,12.41756384,168.17,168.15,26.0]
[1747724557572,5.94671741,168.16,168.15,26.0]
[1747724558161,18.36428125,168.16,168.11,1.5902]
[1747724558378,12.41756384,168.15,168.13,26.0]
[1747724558977,18.36428125,168.16,168.13,26.0]
[1747724560893,12.41756384,168.15,168.11,27.5902]
[1747724562196,12.41756384,168.16,168.11,27.5902]
[1747724562893,5.94707106,168.15,168.11,27.5902]
[1747724564981,18.3646349,168.15,168.11,27.5902]
[1747724565871,18.3646349,168.15,168.12,26.0]
[1747724566195,20.81474872,168.15,168.05,19.04]
[1747724566493,20.81474872,168.15,168.04,8.52294686]
[1747724566494,12.41756384,168.08,168.04,8.52294686]
[1747724566795,12.41756384,168.07,168.04,8.52294686]
[1747724567099,5.95025586,168.06,168.04,8.52294686]
[1747724567885,18.3678197,168.06,168.04,8.52294686]
[1747724569186,18.3678197,168.06,168.01,26.0]
[1747724570408,5.95025586,168.06,168.01,26.0]
[1747724570999,18.3678197,168.06,168.01,26.0]
[1747724571701,18.3678197,168.06,168.02,26.0]
[1747724571998,33.24345935,168.06,168.02,26.0]
[1747724572187,12.41756384,168.05,167.99,19.3872]
[1747724572388,12.41756384,168.05,168.0,26.0]
[1747724572583,12.41756384,168.04,167.99,27.5472]
[1747724572798,12.41756384,168.02,167.99,26.0]
[1747724572985,12.41756384,168.01,167.96,17.84]
[1747724573503,12.41756384,168.02,167.96,43.84]
[1747724573798,5.95202666,168.01,167.96,17.84]
[1747724573989,5.95202666,168.01,167.96,43.84]
[1747724574905,12.41756384,168.0,167.96,26.0]
[1747724575105,12.41756384,168.0,167.94,1.5357]
[1747724575317,12.41756384,167.99,167.94,1.5357]
[1747724575478,5.95202666,168.01,167.95,26.0]
[1747724575684,5.95168869,168.02,167.95,26.0]
[1747724575888,5.95168869,168.02,167.95,31.95389797]
[1747724576218,14.87528745,168.07,167.96,18.933972]
[1747724576387,12.41756384,168.05,167.96,18.933972]
[1747724577309,14.87528745,168.07,167.98,26.0]
[1747724577489,12.41756384,168.05,167.98,26.0]
[1747724578015,12.41756384,168.07,168.0,1.5509]
[1747724578203,12.41756384,168.06,168.0,1.5509]
[1747724578789,12.41756384,168.04,168.0,1.5509]
[1747724579184,12.41756384,168.04,168.0,26.0]
[1747724579382,5.95167241,168.02,168.0,26.0]
[1747724579581,5.95167241,168.02,167.98,43.84]
[1747724580200,5.95167241,168.02,167.98,26.0]
[1747724580717,12.41756384,168.03,167.98,26.0]
[1747724580919,5.95060993,168.05,167.98,26.0]
[1747724581610,5.95028371,168.06,167.98,31.95291635]
[1747724581806,18.36784755,168.06,167.98,31.95291635]
[1747724582490,12.41756384,168.05,167.98,31.95291635]
[1747724582694,20.82271607,168.09,167.98,26.0]
[1747724582695,12.41756384,168.04,167.98,26.0]
[1747724582909,12.41756384,168.03,167.98,43.84]
[1747724583211,12.41756384,168.06,167.98,43.84]
[1747724584920,5.95060993,168.05,167.98,49.79302712]
[1747724585296,18.36817377,168.05,167.98,49.79302712]
[1747724585720,12.41756384,168.04,167.99,17.84]
[1747724587416,5.95131821,168.03,167.99,17.84]
[1747724589406,18.36888205,168.03,167.98,26.0]
[1747724589606,5.95131821,168.03,167.98,26.0]
[1747724589802,18.36888205,168.03,167.98,26.0]
[1747724590002,5.95131821,168.03,167.98,26.0]
[1747724590224,5.95102522,168.04,167.98,31.95308312]
[1747724591824,5.95060993,168.05,167.98,31.95308312]
[1747724592421,5.94990182,168.07,168.01,26.0]
[1747724594014,5.94990182,168.07,168.01,31.95191691]
[1747724595028,5.94966208,168.08,168.01,31.95191691]
[1747724595217,5.94966208,168.08,168.02,1.5458]
[1747724595410,5.94966208,168.08,168.03,17.84]
[1747724596208,12.41756384,168.09,168.03,17.84]
[1747724597834,5.94954783,168.08,168.03,17.84]
[1747724600813,5.94954783,168.08,168.02,1.5458]
[1747724600814,12.41756384,168.07,168.02,1.5458]
[1747724601209,12.41756384,168.07,168.01,43.84]
[1747724601408,12.41756384,168.05,167.98,1.5098]
[1747724601726,20.82341741,168.08,167.97,17.84]
[1747724601727,12.41756384,168.03,167.97,17.84]
[1747724601935,12.41756384,168.03,167.98,26.0]
[1747724602118,12.41756384,168.03,167.97,17.84]
[1747724602318,12.41756384,168.03,167.98,26.0]
[1747724602628,12.41756384,168.03,167.97,17.84]
[1747724602839,12.41756384,168.03,167.98,26.0]
[1747724603134,12.41756384,168.01,167.97,17.84]
[1747724603333,12.41756384,167.98,167.95,17.84]
[1747724603511,12.41756384,167.98,167.94,45.3744]
[1747724603707,5.95344406,167.97,167.94,26.0]
[1747724603927,18.3710079,167.97,167.93,17.84]
[1747724604123,12.41756384,167.95,167.91,8.52294686]
[1747724604438,12.41756384,167.96,167.91,26.36294686]
[1747724604616,12.41756384,167.93,167.91,8.52294686]
[1747724604817,20.83705422,167.97,167.88,26.0]
[1747724604818,12.41756384,167.92,167.88,26.0]
[1747724605220,12.41756384,167.9,167.85,1.5684]
[1747724605435,20.83705422,167.97,167.86,17.84]
[1747724605436,12.41756384,167.93,167.86,17.84]
[1747724605630,18.37233957,167.94,167.87,31.95696857]
[1747724605837,12.41756384,167.97,167.89,0.28432314]
[1747724606022,12.41756384,167.96,167.87,32.24129171]
[1747724606226,12.41756384,167.95,167.87,32.09913014]
[1747724607241,18.37198517,167.95,167.87,32.09913014]
[1747724607442,12.41756384,167.98,167.87,32.09913014]
[1747724607741,12.41756384,167.99,167.91,26.0]
[1747724608441,12.41756384,167.98,167.92,1.5104]
[1747724608738,12.41756384,167.98,167.93,17.84]
[1747724608934,5.95283445,167.99,167.93,17.84]
[1747724609126,18.3695905,168.01,167.96,26.0]
[1747724609323,18.3695905,168.01,167.93,17.84]
[1747724609538,12.41756384,168.0,167.94,26.0]
[1747724610478,12.41756384,167.99,167.94,26.0]
[1747724610818,12.41756384,167.97,167.94,26.0]
[1747724611223,18.37065349,167.98,167.94,26.0]
[1747724612351,12.41756384,167.95,167.88,10.03914686]
[1747724612652,5.95308965,167.98,167.89,26.0]
[1747724612653,12.41756384,167.93,167.89,26.0]
[1747724612835,12.41756384,167.94,167.89,26.0]
[1747724613017,12.41756384,167.94,167.9,26.0]
[1747724613220,12.41756384,167.94,167.88,1.5162]
[1747724613732,12.41756384,167.93,167.9,26.0]
[1747724614219,5.95521676,167.92,167.9,26.0]
[1747724615115,5.95493676,167.93,167.9,26.0]
[1747724615844,12.41756384,167.95,167.9,26.0]
[1747724615845,5.95415302,167.95,167.91,26.0]
[1747724616337,12.41756384,167.94,167.9,26.0]
[1747724617434,12.41756384,167.93,167.9,26.0]
[1747724618025,12.41756384,167.94,167.9,26.0]
[1747724618230,33.25709941,167.95,167.9,26.0]
[1747724619340,18.37171686,167.95,167.9,26.0]
[1747724619546,5.95415302,167.95,167.9,26.0]
[1747724621148,5.95379852,167.96,167.9,26.0]
[1747724622250,5.95344406,167.97,167.9,26.0]
[1747724622450,18.3710079,167.97,167.9,26.0]
[1747724622761,153.08057297,168.01,167.9,31.95589892]
[1747724623053,18.36994479,168.0,167.91,26.0]
[1747724623245,12.41756384,167.99,167.91,26.0]
[1747724623551,12.41756384,167.97,167.92,17.84]
[1747724623729,12.41756384,167.99,167.92,17.84]
[1747724623930,33.25089717,168.0,167.92,17.84]
[1747724624338,33.25089717,168.0,167.92,23.79502131]
[1747724624654,18.36994479,168.0,167.92,23.79502131]
[1747724625026,12.41756384,167.99,167.92,23.79516679]
[1747724625469,12.41756384,167.98,167.92,17.84]
[1747724625829,12.41756384,167.97,167.92,17.84]
[1747724628350,5.95379852,167.96,167.92,17.84]
[1747724629833,5.95379852,167.96,167.93,26.0]
[1747724630431,5.95167241,168.02,167.93,18.64964886]
[1747724630630,5.95167241,168.02,167.97,26.0]
[1747724630843,5.950691,168.05,167.98,17.84]
[1747724631050,5.95027104,168.06,167.98,17.84]
[1747724631233,5.95027104,168.06,168.01,26.0]
[1747724631637,5.94990182,168.07,168.01,26.0]
[1747724633156,18.36746566,168.07,168.01,26.0]
[1747724633337,5.94990182,168.07,168.01,26.0]
[1747724633543,18.36746566,168.07,168.01,26.0]
[1747724634061,5.94990182,168.07,168.01,26.0]
[1747724634542,5.94990182,168.07,168.01,31.95184405]
[1747724636445,5.94990182,168.07,168.01,26.0]
[1747724636755,18.36746566,168.07,168.01,26.0]
[1747724639655,5.94990182,168.07,168.01,26.0]
[1747724639841,18.36746566,168.07,168.01,26.0]
[1747724640558,5.94990182,168.07,168.01,26.0]
[1747724640859,18.36746566,168.07,168.01,26.0]
[1747724641663,5.94990182,168.07,168.01,33.61622301]
[1747724641955,5.94990182,168.07,168.01,27.6642]
[1747724642159,18.36746566,168.07,168.01,27.6642]
[1747724642460,5.94990182,168.07,168.01,33.61618926]
[1747724642658,18.36640381,168.1,168.01,40.13378926]
[1747724644575,5.94883997,168.1,168.03,5.95131821]
[1747724644741,5.94883997,168.1,168.04,43.84]
[1747724645251,18.36640381,168.1,168.04,43.84]
[1747724645445,12.41756384,168.07,168.01,1.6642]
[1747724645761,12.41756384,168.05,168.01,45.5042]
[1747724646159,12.41756384,168.03,167.97,27.4935]
[1747724646354,12.41756384,168.03,167.99,26.0]
[1747724646667,5.95167241,168.02,167.99,26.0]
[1747724647270,18.36923625,168.02,167.97,19.4201]
[1747724647471,18.36923625,168.02,168.0,26.0]
[1747724647767,18.05525892,168.02,168.0,26.0]
[1747724648062,18.05525892,168.02,167.98,26.0]
[1747724649773,5.63769508,168.02,167.98,26.0]
[1747724650772,18.05525892,168.02,167.98,26.0]
[1747724651778,12.41756384,168.01,167.96,26.0]
[1747724652268,12.41756384,168.0,167.96,26.0]
[1747724653663,12.41756384,168.01,167.96,26.0]
[1747724653864,5.95238095,168.0,167.96,26.0]
[1747724654374,18.36994479,168.0,167.96,26.0]
[1747724654671,33.25089717,168.0,167.96,26.0]
[1747724657473,18.36994479,168.0,167.96,26.0]
[1747724657775,5.95238095,168.0,167.96,26.0]
[1747724657972,5.95202666,168.01,167.96,26.0]
[1747724658177,18.3695905,168.01,167.96,26.0]
[1747724659254,5.95202666,168.01,167.96,26.0]
[1747724659459,5.95096405,168.04,167.96,26.0]
[1747724659661,18.36852789,168.04,167.96,26.0]
[1747724660184,5.95167241,168.02,167.96,26.0]
[1747724660489,5.95167241,168.02,167.96,31.95373808]
[1747724661156,5.95167241,168.02,167.96,26.0]
[1747724661587,12.41756384,168.0,167.96,26.0]
[1747724661881,12.41756384,168.0,167.94,43.84]
[1747724662071,5.95308965,167.98,167.94,17.84]
[1747724662274,18.37065349,167.98,167.94,17.84]
[1747724662473,12.41756384,167.97,167.93,45.3946]
[1747724662672,12.41756384,167.97,167.93,19.3946]
[1747724662877,18.37065349,167.98,167.93,19.3946]
[1747724663564,12.41756384,167.97,167.93,19.3946]
[1747724664083,5.95379852,167.96,167.93,19.3946]
[1747724664287,5.95379852,167.96,167.93,1.5546]
[1747724664490,5.95379852,167.96,167.92,43.84]
[1747724664678,18.37136236,167.96,167.92,43.84]
[1747724664887,18.37136236,167.96,167.92,26.0]
[1747724665062,33.25585866,167.96,167.91,17.84]
[1747724665266,12.41756384,167.95,167.91,26.0]
[1747724665488,12.41756384,167.95,167.91,43.84]
[1747724666083,5.95450756,167.94,167.91,26.0]
[1747724667180,12.41756384,167.93,167.88,43.84]
[1747724667690,12.41756384,167.93,167.88,26.0]
[1747724667873,12.41756384,167.93,167.88,43.84]
[1747724668073,5.95521676,167.92,167.88,43.84]
[1747724670701,5.95486214,167.93,167.88,43.84]
[1747724670903,18.37242598,167.93,167.88,43.84]
[1747724671799,5.95486214,167.93,167.88,43.84]
[1747724672095,5.95344406,167.97,167.88,49.79651435]
[1747724672296,18.3710079,167.97,167.88,31.95651435]
[1747724672501,18.3710079,167.97,167.89,17.84]
[1747724672804,18.3710079,167.97,167.89,23.7962488]
[1747724673100,12.41756384,167.96,167.89,17.84]
[1747724673302,12.41756384,167.94,167.89,17.84]
[1747724674101,12.41756384,167.94,167.88,26.0]
[1747724674279,5.95486214,167.93,167.89,17.84]
[1747724675201,5.95486214,167.93,167.89,26.0]
[1747724679603,18.37242598,167.93,167.89,26.0]
[1747724680087,5.95486214,167.93,167.89,26.0]
[1747724681090,5.95344406,167.97,167.89,31.95616227]
[1747724681285,33.25407184,167.98,167.89,31.95616227]
[1747724681598,5.95308965,167.98,167.92,27.5909]
[1747724681907,5.95308965,167.98,167.93,17.86]
[1747724683199,5.95238095,168.0,167.93,23.81483812]
[1747724684008,5.95238095,168.0,167.93,30.13343812]
[1747724684916,12.41756384,168.03,167.96,26.0]
[1747724685488,12.41756384,168.03,167.97,17.86]
[1747724685708,12.41756384,168.02,167.97,17.86]
[1747724686299,5.95202666,168.01,167.97,17.86]
[1747724687908,18.36934513,168.02,167.97,17.86]
[1747724688214,12.41756384,168.01,167.97,17.86]
[1747724689319,12.41756384,168.0,167.97,26.0]
[1747724690213,5.95273528,167.99,167.97,26.0]
[1747724690810,18.37029912,167.99,167.95,17.84]
[1747724691112,12.41756384,167.98,167.95,17.84]
[1747724691317,12.41756384,167.98,167.95,26.0]
[1747724691521,12.41756384,167.98,167.94,26.0]
[1747724691920,12.41756384,167.98,167.93,17.84]
[1747724692101,12.41756384,167.98,167.93,43.84]
[1747724692303,5.95344406,167.97,167.93,43.84]
[1747724693321,5.95344406,167.97,167.93,26.0]
[1747724694327,12.41756384,167.97,167.93,26.0]
[1747724695606,5.95379852,167.96,167.93,26.0]
[1747724696416,12.41756384,167.99,167.93,26.0]
[1747724696611,5.95273528,167.99,167.93,26.0]
[1747724696927,5.95273528,167.99,167.93,31.95480378]
[1747724697422,5.95230398,168.01,167.94,18.64964886]
[1747724697626,5.95167241,168.02,167.94,24.60382173]
[1747724699428,12.41756384,168.02,167.94,24.60382173]
[1747724699631,12.41756384,168.03,167.95,0.28432314]
[1747724699800,5.95096405,168.04,167.97,26.0]
[1747724700007,5.95096405,168.04,167.98,1.5267]
[1747724701113,5.95096405,168.04,167.98,6.16250269]
[1747724701317,5.95096405,168.04,167.98,1.5267]
[1747724701698,5.94954783,168.08,168.01,26.0]
[1747724702921,5.94954783,168.08,168.03,26.0]
[1747724703126,5.94954783,168.08,168.04,17.84]
[1747724703430,5.94919388,168.09,168.04,17.84]
[1747724704845,5.94848611,168.11,168.07,26.0]
[1747724706131,5.94848611,168.11,168.05,1.5509]
[1747724706132,12.41756384,168.1,168.05,45.3909]
[1747724706524,33.23726522,168.11,168.05,45.3909]
[1747724706933,12.41756384,168.1,168.05,45.3909]
[1747724707344,5.94919388,168.09,168.05,45.3909]
[1747724707858,33.23974243,168.09,168.05,45.3909]
[1747724708155,12.41756384,168.07,168.03,43.84]
[1747724708948,5.94919388,168.09,168.03,43.84]
[1747724709324,18.36640381,168.1,168.03,43.84]
[1747724710467,12.41756384,168.09,168.03,43.84]
[1747724710965,50.56513979,168.1,168.01,1.6404]
[1747724711133,12.41756384,168.02,167.98,17.84]
[1747724711342,5.95202666,168.01,168.0,26.0]
[1747724712033,5.95131821,168.03,168.0,26.0]
[1747724712440,5.94990182,168.07,168.01,26.0]
[1747724713053,18.36746566,168.07,168.01,26.0]
[1747724713432,12.41756384,168.06,168.01,26.0]
[1747724713758,18.36817377,168.05,168.01,26.0]
[1747724713972,12.41756384,168.04,168.01,26.0]
[1747724714643,18.36817377,168.05,168.01,26.0]
[1747724715033,5.95060993,168.05,168.01,26.0]
[1747724716256,50.56621851,168.1,168.01,26.0]
[1747724716451,12.41756384,168.06,168.01,26.0]
[1747724717257,5.95060993,168.05,168.01,26.0]
[1747724717556,5.95060993,168.05,167.99,46.74283434]
[1747724717557,18.36817377,168.05,167.99,46.74283434]
[1747724717753,12.41756384,168.04,167.99,43.84]
[1747724718160,12.41756384,168.04,167.99,26.0]
[1747724718546,5.95131821,168.03,167.99,26.0]
[1747724720446,5.95096405,168.04,167.99,26.0]
[1747724721567,18.36852789,168.04,167.99,26.0]
[1747724722371,12.41756384,168.03,167.99,26.0]
[1747724723349,12.41756384,168.03,167.98,17.84]
[1747724723659,12.41756384,168.03,168.01,26.0]
[1747724724047,20.82837419,168.04,167.97,1.6506]
[1747724724368,5.95202666,168.01,167.99,26.0]
[1747724728369,29.75191846,168.06,167.97,1.6506]
[1747724728370,5.95025586,168.06,167.97,1.6506]
[1747724728550,5.95025586,168.06,167.99,0.28432314]
[1747724729867,5.95025586,168.06,167.98,100.84964886]
[1747724729868,5.95025586,168.06,168.01,18.933972]
[1747724730076,18.3678197,168.06,168.02,17.84]
[1747724730249,5.95096405,168.04,168.0,17.84]
[1747724730972,33.24593803,168.04,168.0,17.84]
[1747724731146,12.41756384,168.03,168.0,17.84]
[1747724731471,20.82837419,168.04,168.0,17.84]
[1747724731472,33.24593803,168.04,168.0,17.84]
[1747724732572,20.82837419,168.04,168.0,17.84]
[1747724732867,5.95096405,168.04,168.0,17.84]
[1747724736076,33.24593803,168.04,168.0,17.84]
[1747724736580,20.82837419,168.04,168.0,17.84]
[1747724738858,14.87741014,168.04,168.0,17.84]
[1747724741577,5.95060993,168.05,168.0,17.84]
[1747724743481,20.82499716,168.07,168.0,17.84]
[1747724743676,33.242561,168.07,168.0,17.84]
[1747724744277,20.82499716,168.07,168.0,17.84]
[1747724746093,12.41756384,168.06,167.99,0.28432314]
[1747724746278,12.41756384,168.02,167.99,26.0]
[1747724746592,12.41756384,168.02,168.01,26.0]
[1747724747366,18.36923625,168.02,168.01,26.0]
[1747724747570,5.95167241,168.02,168.01,26.0]
[1747724751683,5.95167241,168.02,167.99,26.0]
[1747724752082,5.95167241,168.02,168.0,26.0]
[1747724756093,18.36923625,168.02,167.97,45.4906]
[1747724757096,12.41756384,168.01,167.97,45.4906]
[1747724757973,5.95238095,168.0,167.97,45.4906]
[1747724758689,5.95238095,168.0,167.93,109.37259572]
[1747724758690,12.41756384,167.98,167.93,10.12534686]
[1747724758893,12.41756384,167.97,167.94,26.0]
[1747724759772,12.41756384,167.96,167.93,8.52294686]
[1747724759968,5.95415302,167.95,167.93,8.52294686]
[1747724760175,12.41756384,167.94,167.93,8.52294686]
[1747724760877,24.83512768,167.94,167.93,8.52294686]
[1747724761297,43.48477654,167.94,167.93,8.52294686]
[1747724761487,43.48477654,167.94,167.84,15.80731143]
[1747724761488,18.64964886,167.93,167.84,1.6024]
[1747724761674,12.41756384,167.88,167.84,27.6024]
[1747724761874,12.41756384,167.88,167.84,1.6024]
[1747724762090,5.95699052,167.87,167.84,27.6024]
[1747724762289,5.95699052,167.87,167.84,1.6024]
[1747724762481,5.95699052,167.87,167.84,27.6024]
[1747724763294,18.37455436,167.87,167.84,27.6024]
[1747724763494,18.37455436,167.87,167.84,26.0]
[1747724764201,18.37455436,167.87,167.78,6.2241]
[1747724764202,12.41756384,167.85,167.78,6.2241]
[1747724764374,12.41756384,167.82,167.77,26.36294686]
[1747724764576,12.41756384,167.82,167.78,26.0]
[1747724765104,12.41756384,167.83,167.77,8.52294686]
[1747724765281,12.41756384,167.83,167.78,26.0]
[1747724765689,12.41756384,167.82,167.78,26.0]
[1747724767400,12.41756384,167.81,167.79,26.0]
[1747724768814,12.41756384,167.76,167.7,15.52019294]
[1747724768994,12.41756384,167.72,167.7,15.52019294]
[1747724769178,7.7428,167.75,167.7,15.52019294]
[1747724769383,12.41756384,167.71,167.7,15.52019294]
[1747724770298,37.3142095,167.71,167.7,15.52019294]
[1747724770605,18.3802375,167.71,167.7,6.99724608]
[1747724771183,5.96267366,167.71,167.7,6.99724608]
[1747724771484,26.0,167.68,167.55,17.86]
[1747724771699,20.03452351,167.62,167.58,26.0]
[1747724771920,26.0,167.61,167.52,27.11424667]
[1747724772102,18.933972,167.6,167.52,27.11424667]
[1747724772420,26.0,167.55,167.52,27.11424667]
[1747724772799,50.06904702,167.55,167.52,27.11424667]
[1747724772997,26.0,167.53,167.52,27.11424667]
[1747724773231,85.00301902,167.53,167.52,18.59129981]
[1747724773396,85.00301902,167.53,167.39,1.6048]
[1747724773596,0.28432314,167.52,167.39,1.6048]
[1747724773825,26.0,167.5,167.39,1.6048]
[1747724774137,26.0,167.5,167.38,26.0]
[1747724774313,20.03452351,167.42,167.36,5.97495233]
[1747724774624,0.28432314,167.48,167.35,6.6298]
[1747724774827,0.28432314,167.48,167.38,26.0]
[1747724775028,5.9705057,167.49,167.38,26.0]
[1747724775207,20.03452351,167.44,167.34,9.25504995]
[1747724775418,20.03452351,167.44,167.35,5.97537971]
[1747724775600,31.9705057,167.49,167.39,18.64964886]
[1747724775927,31.9705057,167.49,167.34,9.25504995]
[1747724775928,20.03452351,167.44,167.34,9.25504995]
[1747724776295,20.03452351,167.4,167.34,9.25504995]
[1747724776498,5.97248854,167.44,167.34,9.25504995]
[1747724776699,20.03452351,167.4,167.35,26.0]
[1747724776902,5.97248854,167.44,167.34,9.25504995]
[1747724777103,26.00701205,167.44,167.34,35.25504995]
[1747724777405,5.97086219,167.48,167.37,26.0]
[1747724777828,6.3914,167.51,167.38,26.0]
[1747724778002,20.98963865,167.57,167.39,26.0]
[1747724778209,20.03452351,167.55,167.43,26.0]
[1747724778403,5.96758735,167.58,167.44,26.0]
[1747724778608,0.50915976,167.57,167.41,9.49084024]
[1747724778830,6.2079,167.63,167.42,9.49084024]
[1747724778831,0.50915976,167.55,167.42,9.49084024]
[1747724779003,0.50915976,167.55,167.4,60.26742326]
[1747724779215,0.50915976,167.55,167.41,9.49084024]
[1747724779450,0.50915976,167.53,167.4,50.77658302]
[1747724779639,0.50915976,167.53,167.4,20.90800477]
[1747724779818,0.50915976,167.55,167.4,20.90800477]
[1747724780134,0.50915976,167.54,167.4,20.90800477]
[1747724780654,0.50915976,167.53,167.43,26.0]
[1747724781214,0.50915976,167.55,167.43,26.0]
[1747724781423,0.50915976,167.53,167.43,26.0]
[1747724781615,20.54368327,167.55,167.44,26.0]
[1747724781928,0.50915976,167.54,167.48,26.0]
[1747724782131,0.50915976,167.53,167.48,26.0]
[1747724782331,0.50915976,167.53,167.5,26.0]
[1747724782743,0.50915976,167.57,167.5,26.0]
[1747724783056,0.50915976,167.55,167.51,26.0]
[1747724783344,20.54368327,167.57,167.49,26.0]
[1747724783547,0.50915976,167.6,167.51,26.0]
[1747724783916,0.50915976,167.61,167.51,26.0]
[1747724784225,0.50915976,167.62,167.51,26.0]
[1747724784427,0.50915976,167.65,167.55,32.0839]
[1747724784650,0.50915976,167.69,167.59,26.0]
[1747724784854,0.50915976,167.7,167.59,26.0]
[1747724785037,0.50915976,167.67,167.59,26.0]
[1747724785338,0.50915976,167.68,167.59,26.0]
[1747724785546,6.4725361,167.7,167.63,26.0]
[1747724785742,6.47201208,167.71,167.63,26.0]
[1747724785949,0.50915976,167.71,167.67,26.0]
[1747724786142,6.0315,167.75,167.64,18.933972]
[1747724786143,0.50915976,167.69,167.65,18.64964886]
[1747724786322,0.50915976,167.72,167.66,0.28432314]
[1747724786521,5.96089651,167.76,167.69,18.64964886]
[1747724786734,0.50915976,167.77,167.7,0.28432314]
[1747724787050,0.50915976,167.81,167.73,18.933972]
[1747724787553,6.46990801,167.77,167.73,18.933972]
[1747724787719,6.46990801,167.77,167.73,18.64964886]
[1747724787918,35.52498829,167.77,167.73,18.64964886]
[1747724788120,36.03414805,167.77,167.73,18.64964886]
[1747724788326,0.50915976,167.76,167.73,18.64964886]
[1747724788532,0.50915976,167.76,167.69,0.28432314]
[1747724788751,0.50915976,167.75,167.72,26.0]
[1747724788952,6.46990801,167.77,167.73,18.64964886]
[1747724789443,5.96074825,167.77,167.69,18.933972]
[1747724789840,5.96074825,167.77,167.69,24.89729847]
[1747724790039,6.46928328,167.79,167.73,18.933972]
[1747724790230,0.50915976,167.77,167.73,18.933972]
[1747724790537,0.50915976,167.77,167.71,18.933972]
[1747724791147,20.85970037,167.79,167.7,18.64964886]
[1747724791148,0.50915976,167.75,167.7,18.64964886]
[1747724791648,0.50915976,167.78,167.71,0.28432314]
[1747724791859,6.46964138,167.78,167.71,0.28432314]
[1747724792028,0.50915976,167.75,167.71,0.28432314]
[1747724793029,5.96160724,167.74,167.71,0.28432314]
[1747724793362,5.96054121,167.77,167.71,0.28432314]
[1747724793575,0.50915976,167.76,167.71,0.28432314]
[1747724793868,6.46970097,167.77,167.71,0.28432314]
[1747724794357,0.50915976,167.75,167.7,18.64964886]
[1747724794529,0.50915976,167.76,167.7,18.64964886]
[1747724794723,30.0733998,167.76,167.7,18.64964886]
[1747724794929,0.50915976,167.75,167.7,18.64964886]
[1747724795128,5.96160724,167.74,167.7,18.64964886]